fUST/lending_fUST_20250924
["ID","MTS","AMOUNT","RATE_DAILY","PERIOD"]
[387206937,1758645038183,-262.88731042,0.00019178,2]
[387206938,1758645038194,-589.47,0.00019178,2]
[387206939,1758645038206,-589.47,0.00019178,2]
[387206940,1758645038217,-460.6435974,0.00019178,2]
[387206941,1758645038238,-128.8264026,0.00019178,2]
[387206942,1758645038251,-589.47,0.00019178,2]
[387206943,1758645038263,-160.4335974,0.00019178,2]
[387206944,1758645038280,-3957.6264026,0.00019178,2]
[387206945,1758645038293,-480.0,0.00019178,2]
[387206946,1758645038307,-1352.65,0.00019178,2]
[387206947,1758645038319,-480.0,0.00019178,2]
[387206948,1758645038330,-480.0,0.00019178,2]
[387206949,1758645038340,-480.0,0.00019178,2]
[387206950,1758645038350,-480.0,0.00019178,2]
[387206951,1758645038362,-480.0,0.00019178,2]
[387206952,1758645038378,-480.0,0.00019178,2]
[387206953,1758645038392,-480.0,0.00019178,2]
[387206954,1758645038404,-480.0,0.00019178,2]
[387206955,1758645038414,-480.0,0.00019178,2]
[387206956,1758645038426,-531.79,0.00019178,2]
[387206957,1758645038437,-720.28,0.00019178,2]
[387206958,1758645038449,-480.0,0.00019178,2]
[387206959,1758645038461,-524.16,0.00019178,2]
[387206960,1758645038471,-151.0,0.00019178,2]
[387206961,1758645038482,-151.0,0.00019178,2]
[387206962,1758645038493,-151.0,0.00019178,2]
[387206963,1758645038505,-844.22,0.00019178,2]
[387206964,1758645038516,-480.0,0.00019178,2]
[387206965,1758645038528,-480.0,0.00019178,2]
[387206966,1758645038539,-480.0,0.00019178,2]
[387206967,1758645038550,-480.0,0.00019178,2]
[387206968,1758645038560,-480.0,0.00019178,2]
[387206969,1758645038572,-480.0,0.00019178,2]
[387206970,1758645038583,-1800.67,0.00019178,2]
[387206971,1758645038594,-480.0,0.00019178,2]
[387206972,1758645038605,-480.0,0.00019178,2]
[387206973,1758645038631,-480.0,0.00019178,2]
[387206974,1758645038646,-480.0,0.00019178,2]
[387206975,1758645038662,-480.0,0.00019178,2]
[387206976,1758645038676,-480.0,0.00019178,2]
[387206977,1758645038691,-480.0,0.00019178,2]
[387206978,1758645038703,-151.79766179,0.00019178,2]
[387206979,1758645038717,-480.0,0.00019178,2]
[387206980,1758645038729,-480.0,0.00019178,2]
[387206981,1758645038743,-500.0,0.00019178,2]
[387206982,1758645038755,-151.0,0.00019178,2]
[387206983,1758645038767,-480.0,0.00019178,2]
[387206984,1758645038780,-480.0,0.00019178,2]
[387206985,1758645038792,-151.58183462,0.00019178,2]
[387206986,1758645038804,-576.49,0.00019178,2]
[387206987,1758645038816,-480.0,0.00019178,2]
[387206988,1758645038827,-151.25006681,0.00019178,2]
[387206989,1758645038840,-2351.79,0.00019178,2]
[387206990,1758645038851,-480.0,0.00019178,2]
[387206991,1758645038863,-480.0,0.00019178,2]
[387206992,1758645038876,-480.0,0.00019178,2]
[387206993,1758645038887,-321.4430261,0.00019178,2]
[387206994,1758645038900,-486.09146418,0.00019178,2]
[387206995,1758645038911,-594.64,0.00019178,2]
[387206996,1758645038922,-480.0,0.00019178,2]
[387206997,1758645038934,-480.0,0.00019178,2]
[387206998,1758645038944,-480.0,0.00019178,2]
[387206999,1758645038955,-480.0,0.00019178,2]
[387207000,1758645038966,-354.6284495,0.00019178,2]
[387207001,1758645038982,-125.3715505,0.00019178,2]
[387207002,1758645038994,-480.0,0.00019178,2]
[387207003,1758645039003,-480.0,0.00019178,2]
[387207004,1758645039013,-928.67,0.00019178,2]
[387207005,1758645039023,-480.0,0.00019178,2]
[387207006,1758645039033,-480.0,0.00019178,2]
[387207007,1758645039042,-480.0,0.00019178,2]
[387207008,1758645039051,-480.0,0.00019178,2]
[387207009,1758645039061,-480.0,0.00019178,2]
[387207010,1758645039070,-480.0,0.00019178,2]
[387207011,1758645039217,-527.66,0.00019178,2]
[387207012,1758645039237,-480.0,0.00019178,2]
[387207013,1758645039246,-650.05,0.00019178,2]
[387207014,1758645039255,-480.0,0.00019178,2]
[387207015,1758645039265,-480.0,0.00019178,2]
[387207016,1758645039275,-825.57,0.00019178,2]
[387207018,1758645039284,-490.90466501,0.00019178,2]
[387207020,1758645039294,-876.98677354,0.00019178,2]
[387207021,1758645039306,-669.34743504,0.00019178,2]
[387207044,1758645040094,-6926.36579142,0.00019178,2]
[387207045,1758645040105,-480.0,0.00019178,2]
[387207046,1758645040116,-480.0,0.00019178,2]
[387207047,1758645040126,-480.0,0.00019178,2]
[387207048,1758645040136,-480.0,0.00019178,2]
[387207049,1758645040147,-1502.92,0.00019178,2]
[387207050,1758645040157,-480.0,0.00019178,2]
[387207051,1758645040167,-480.0,0.00019178,2]
[387207052,1758645040177,-151.0,0.00019178,2]
[387207053,1758645040186,-151.0,0.00019178,2]
[387207054,1758645040196,-300.87610655,0.00019178,2]
[387207055,1758645040205,-832.8,0.00019178,2]
[387207056,1758645040215,-480.0,0.00019178,2]
[387207057,1758645040225,-480.0,0.00019178,2]
[387207058,1758645040235,-480.0,0.00019178,2]
[387207059,1758645040245,-480.0,0.00019178,2]
[387207060,1758645040254,-480.0,0.00019178,2]
[387207061,1758645040264,-480.0,0.00019178,2]
[387207062,1758645040274,-524.74,0.00019178,2]
[387207063,1758645040283,-480.0,0.00019178,2]
[387207064,1758645040292,-1013.4,0.00019178,2]
[387207065,1758645040302,-480.0,0.00019178,2]
[387207066,1758645040311,-151.0,0.00019178,2]
[387207067,1758645040321,-505.1492808,0.00019178,2]
[387207068,1758645040330,-500.0,0.00019178,2]
[387207069,1758645040340,-151.42773969,0.00019178,2]
[387207070,1758645040349,-480.0,0.00019178,2]
[387207071,1758645040359,-151.0,0.00019178,2]
[387207072,1758645040370,-480.0,0.00019178,2]
[387207073,1758645040382,-151.0,0.00019178,2]
[387207074,1758645040391,-151.0,0.00019178,2]
[387207075,1758645040401,-219.19332448,0.00019178,2]
[387207076,1758645040410,-480.0,0.00019178,2]
[387207077,1758645040419,-480.0,0.00019178,2]
[387207078,1758645040429,-1801.8,0.00019178,2]
[387207079,1758645040438,-480.0,0.00019178,2]
[387207080,1758645040448,-480.0,0.00019178,2]
[387207081,1758645040457,-614.0,0.00019178,2]
[387207082,1758645040466,-480.0,0.00019178,2]
[387207083,1758645040476,-480.0,0.00019178,2]
[387207084,1758645040485,-480.0,0.00019178,2]
[387207085,1758645040495,-500.0,0.00019178,2]
[387207086,1758645040504,-1464.42240205,0.00019251,2]
[387207087,1758645040514,-3109.68,0.00019342,3]
[387207088,1758645040523,-1554.84,0.00019342,3]
[387207089,1758645040532,-777.42,0.00019342,3]
[387207090,1758645040542,-388.71,0.00019342,3]
[387207091,1758645040551,-194.36,0.00019342,3]
[387207092,1758645040562,-583.1,0.00019342,3]
[387207093,1758645040571,-589.47,0.00019351,2]
[387207094,1758645040580,-480.0,0.00019351,2]
[387207095,1758645040590,-480.0,0.00019351,2]
[387207096,1758645040600,-216.07230704,0.00019351,2]
[387207097,1758645040611,-500.0,0.00019351,2]
[387207098,1758645040621,-330.50177305,0.00019351,2]
[387207099,1758645040630,-500.0,0.00019351,2]
[387207100,1758645040640,-500.0,0.00019351,2]
[387207101,1758645040649,-1001.47653562,0.00019352,2]
[387207102,1758645040659,-8262.57657829,0.00019352,2]
[387207103,1758645040669,-73241.72180561,0.00019352,2]
[387207104,1758645040678,-3247.22532116,0.00019446,2]
[387207105,1758645040688,-589.47,0.0001945,2]
[387207106,1758645040697,-1067.37,0.00019451,2]
[387207107,1758645040707,-1067.37,0.00019451,2]
[387207108,1758645040717,-1067.37,0.00019451,2]
[387207109,1758645040726,-1067.37,0.00019451,2]
[387207110,1758645040736,-1067.37,0.00019451,2]
[387207111,1758645040746,-589.47,0.00019451,2]
[387207112,1758645040755,-589.47,0.00019451,2]
[387207113,1758645040765,-589.47,0.00019451,2]
[387207114,1758645040775,-589.47,0.00019451,2]
[387207115,1758645040784,-589.47,0.00019451,2]
[387207116,1758645040794,-151.0,0.00019452,2]
[387207117,1758645040804,-151.0,0.00019452,2]
[387207118,1758645040813,-500.0,0.00019452,2]
[387207119,1758645040824,-248.69141765,0.00019452,2]
[387207120,1758645040833,-151.0,0.00019452,2]
[387207121,1758645040842,-151.0,0.00019452,2]
[387207122,1758645040852,-151.0,0.00019452,2]
[387207123,1758645040862,-636.6289111,0.00019452,2]
[387207124,1758645040871,-151.0,0.00019452,2]
[387207125,1758645040881,-151.0,0.00019452,2]
[387207126,1758645040891,-151.0,0.00019452,2]
[387207127,1758645040900,-500.0,0.00019452,2]
[387207128,1758645040910,-152.52821439,0.00019452,2]
[387207129,1758645040919,-198.0,0.00019452,2]
[387207130,1758645040929,-480.0,0.00019452,2]
[387207131,1758645040938,-539.23417234,0.00019452,2]
[387207132,1758645040948,-480.0,0.00019452,2]
[387207133,1758645040958,-480.0,0.00019452,2]
[387207134,1758645040968,-480.0,0.00019452,2]
[387207135,1758645040978,-480.0,0.00019452,2]
[387207136,1758645040987,-480.0,0.00019452,2]
[387207137,1758645040997,-573.34543065,0.00019452,2]
[387207138,1758645041006,-480.0,0.00019452,2]
[387207139,1758645041016,-480.0,0.00019452,2]
[387207140,1758645041026,-480.0,0.00019452,2]
[387207141,1758645041036,-480.0,0.00019452,2]
[387207142,1758645041050,-459.95805596,0.00019452,2]
[387207143,1758645041069,-480.0,0.00019452,2]
[387207144,1758645041089,-1000.0,0.00019452,2]
[387207145,1758645041110,-1000.0,0.00019452,2]
[387207146,1758645041131,-400.0,0.00019452,2]
[387207147,1758645041155,-480.0,0.00019452,2]
[387207148,1758645041177,-480.0,0.00019452,2]
[387207149,1758645041198,-480.0,0.00019452,2]
[387207150,1758645041221,-480.0,0.00019452,2]
[387207151,1758645041244,-480.0,0.00019452,2]
[387207152,1758645041267,-333.75431498,0.00019452,2]
[387207179,1758645043067,-146.24568502,0.00019452,2]
[387207180,1758645043078,-122.25433498,0.00019452,2]
[387207181,1758645043120,-357.74566502,0.00019452,2]
[387207182,1758645043129,-466.17494564,0.00019452,2]
[387207183,1758645043138,-490.69534986,0.00019452,2]
[387207184,1758645043149,-480.0,0.00019452,2]
[387207185,1758645043159,-480.0,0.00019452,2]
[387207186,1758645043168,-480.0,0.00019452,2]
[387207187,1758645043178,-480.0,0.00019452,2]
[387207189,1758645043188,-480.0,0.00019452,2]
[387207191,1758645043198,-480.0,0.00019452,2]
[387207193,1758645043207,-1759.18,0.00019452,2]
[387207195,1758645043216,-480.0,0.00019452,2]
[387207197,1758645043226,-480.0,0.00019452,2]
[387207199,1758645043235,-480.0,0.00019452,2]
[387207201,1758645043246,-480.0,0.00019452,2]
[387207202,1758645043256,-187.69,0.00019452,2]
[387207203,1758645043266,-480.0,0.00019452,2]
[387207204,1758645043275,-480.0,0.00019452,2]
[387207205,1758645043285,-480.0,0.00019452,2]
[387207206,1758645043294,-480.0,0.00019452,2]
[387207207,1758645043304,-480.0,0.00019452,2]
[387207208,1758645043313,-480.0,0.00019452,2]
[387207209,1758645043323,-480.0,0.00019452,2]
[387207210,1758645043332,-480.0,0.00019452,2]
[387207211,1758645043341,-480.0,0.00019452,2]
[387207212,1758645043350,-480.0,0.00019452,2]
[387207213,1758645043359,-480.0,0.00019452,2]
[387207214,1758645043369,-480.0,0.00019452,2]
[387207215,1758645043381,-480.0,0.00019452,2]
[387207216,1758645043390,-480.0,0.00019452,2]
[387207217,1758645043400,-480.0,0.00019452,2]
[387207218,1758645043409,-480.0,0.00019452,2]
[387207219,1758645043420,-480.0,0.00019452,2]
[387207220,1758645043430,-480.0,0.00019452,2]
[387207221,1758645043439,-488.57735303,0.00019452,2]
[387207222,1758645043450,-480.0,0.00019452,2]
[387207223,1758645043459,-480.0,0.00019452,2]
[387207224,1758645043468,-644.42,0.00019452,2]
[387207225,1758645043478,-480.0,0.00019452,2]
[387207226,1758645043487,-480.0,0.00019452,2]
[387207227,1758645043496,-480.0,0.00019452,2]
[387207228,1758645043506,-480.0,0.00019452,2]
[387207229,1758645043515,-305.98540857,0.00019452,2]
[387207237,1758645046029,-480.0,0.00019178,2]
[387207238,1758645046038,-174.01459143,0.00019452,2]
[387207239,1758645046048,-290.94439098,0.00019452,2]
[387207240,1758645046057,-3109.4342706,0.00019452,2]
[387207241,1758645046082,-620.1916192,0.00019452,2]
[387207243,1758645237693,1762.0,0.00029222,60]
[387207289,1758646232205,-409.89539277,0.00019066,2]
[387207291,1758646232215,-300.0,0.00019066,2]
[387207293,1758646232224,-1200.0,0.00019066,2]
[387207295,1758646232234,-14072.35114896,0.00019067,2]
[387207299,1758646232258,-30703.28291662,0.00019067,2]
[387207301,1758646232268,-1000.0,0.00019067,2]
[387207303,1758646232278,-1000.0,0.00019067,2]
[387207305,1758646232287,-159.92587531,0.00019067,2]
[387207308,1758646232296,-19430.93402607,0.00019067,2]
[387207311,1758646232306,-500.0,0.00019067,2]
[387207314,1758646232316,-500.0,0.00019067,2]
[387207316,1758646232325,-500.0,0.00019067,2]
[387207318,1758646232334,-500.0,0.00019067,2]
[387207321,1758646232344,-151.0,0.00019067,2]
[387207324,1758646232353,-500.0,0.00019067,2]
[387207327,1758646232362,-500.0,0.00019067,2]
[387207330,1758646232372,-500.0,0.00019067,2]
[387207332,1758646232381,-500.0,0.00019067,2]
[387207335,1758646232390,-489.2139876,0.00019067,2]
[387207339,1758646232400,-354.36969751,0.00019068,2]
[387207342,1758646232410,-1004.17,0.00019068,3]
[387207345,1758646232420,-1840.97,0.00019068,3]
[387207348,1758646232429,-920.49,0.00019068,3]
[387207350,1758646232439,-460.24,0.00019068,3]
[387207353,1758646232448,-230.12,0.00019068,3]
[387207356,1758646232457,-690.39,0.00019068,3]
[387207360,1758646232467,-500.59675769,0.00019073,2]
[387207362,1758646232476,-500.0,0.00019073,2]
[387207365,1758646232485,-1427.60050843,0.00019077,2]
[387207368,1758646232494,-500.0,0.00019077,2]
[387207371,1758646232504,-500.0,0.00019077,2]
[387207374,1758646232513,-217.76365595,0.00019077,2]
[387207377,1758646232523,-281.35124114,0.00019077,2]
[387207381,1758646232534,-151.0,0.00019078,2]
[387207382,1758646232543,-151.0,0.00019078,2]
[387207384,1758646232553,-151.0,0.00019078,2]
[387207386,1758646232562,-151.0,0.00019078,2]
[387207388,1758646232572,-151.0,0.00019078,2]
[387207390,1758646232582,-151.0,0.00019078,2]
[387207392,1758646232591,-151.0,0.00019078,2]
[387207394,1758646232601,-155.004621,0.00019078,2]
[387207396,1758646232610,-151.0,0.00019078,2]
[387207397,1758646232619,-151.0,0.00019078,2]
[387207398,1758646232629,-151.0,0.00019078,2]
[387207400,1758646232638,-151.0,0.00019078,2]
[387207401,1758646232648,-151.0,0.00019078,2]
[387207402,1758646232657,-151.0,0.00019078,2]
[387207403,1758646232666,-151.922164,0.00019078,2]
[387207405,1758646232676,-151.0,0.00019078,2]
[387207406,1758646232685,-151.0,0.00019078,2]
[387207407,1758646232695,-151.0,0.00019078,2]
[387207408,1758646232705,-151.0,0.00019078,2]
[387207409,1758646232715,-213.82,0.00019078,2]
[387207410,1758646232725,-151.0,0.00019078,2]
[387207411,1758646232735,-151.0,0.00019078,2]
[387207412,1758646232744,-151.0,0.00019078,2]
[387207413,1758646232754,-151.0,0.00019078,2]
[387207414,1758646232763,-359.543233,0.00019078,2]
[387207416,1758646232773,-359.543233,0.00019078,2]
[387207417,1758646232782,-359.543233,0.00019078,2]
[387207418,1758646232792,-359.543233,0.00019078,2]
[387207419,1758646232802,-7973.54194697,0.00019078,2]
[387207420,1758646232811,-151.0,0.00019078,2]
[387207421,1758646232821,-155917.99137651,0.00019078,2]
[387207422,1758646232831,-500.0,0.00019078,2]
[387207424,1758646232840,-1000.0,0.00019177,2]
[387207425,1758646232850,-1000.0,0.00019177,2]
[387207426,1758646232859,-1000.0,0.00019177,2]
[387207427,1758646232869,-1000.0,0.00019177,2]
[387207428,1758646232879,-1000.0,0.00019177,2]
[387207429,1758646232888,-1000.0,0.00019177,2]
[387207430,1758646232897,-500.73826782,0.00019178,2]
[387207431,1758646232907,-480.0,0.00019178,2]
[387207432,1758646232917,-480.0,0.00019178,2]
[387207433,1758646232926,-480.94301996,0.00019178,2]
[387207434,1758646232937,-157.17149234,0.00019178,2]
[387207435,1758646232948,-480.0,0.00019178,2]
[387207436,1758646232958,-200.76965177,0.00019178,2]
[387207437,1758646232967,-482.34784075,0.00019178,2]
[387207438,1758646232976,-480.0,0.00019178,2]
[387207439,1758646232986,-480.0,0.00019178,2]
[387207440,1758646232996,-480.0,0.00019178,2]
[387207441,1758646233005,-480.0,0.00019178,2]
[387207442,1758646233017,-410.79806037,0.00019178,2]
[387207443,1758646233027,-480.0,0.00019178,2]
[387207444,1758646233037,-480.0,0.00019178,2]
[387207445,1758646233046,-151.0,0.00019178,2]
[387207446,1758646233056,-151.0,0.00019178,2]
[387207447,1758646233066,-151.0,0.00019178,2]
[387207448,1758646233076,-151.0,0.00019178,2]
[387207449,1758646233085,-480.0,0.00019178,2]
[387207450,1758646233095,-166.463017,0.00019178,2]
[387207451,1758646233209,-480.0,0.00019178,2]
[387207452,1758646233221,-480.0,0.00019178,2]
[387207453,1758646233232,-480.0,0.00019178,2]
[387207454,1758646233242,-480.0,0.00019178,2]
[387207455,1758646233252,-480.0,0.00019178,2]
[387207456,1758646233263,-480.0,0.00019178,2]
[387207457,1758646233273,-480.0,0.00019178,2]
[387207458,1758646233285,-480.0,0.00019178,2]
[387207459,1758646233294,-151.0,0.00019178,2]
[387207460,1758646233304,-151.0,0.00019178,2]
[387207461,1758646233313,-151.0,0.00019178,2]
[387207462,1758646233322,-151.0,0.00019178,2]
[387207463,1758646233332,-151.0,0.00019178,2]
[387207464,1758646233342,-151.0,0.00019178,2]
[387207465,1758646233351,-151.0,0.00019178,2]
[387207466,1758646233360,-151.0,0.00019178,2]
[387207467,1758646233370,-480.0,0.00019178,2]
[387207468,1758646233379,-151.0,0.00019178,2]
[387207469,1758646233389,-259.516042,0.00019178,2]
[387207470,1758646233398,-480.0,0.00019178,2]
[387207471,1758646233407,-151.0,0.00019178,2]
[387207472,1758646233417,-480.0,0.00019178,2]
[387207473,1758646233426,-151.0,0.00019178,2]
[387207474,1758646233436,-151.0,0.00019178,2]
[387207475,1758646233445,-154.336327,0.00019178,2]
[387207476,1758646233456,-480.0,0.00019178,2]
[387207477,1758646233466,-480.0,0.00019178,2]
[387207478,1758646233475,-480.0,0.00019178,2]
[387207479,1758646233485,-480.0,0.00019178,2]
[387207480,1758646233494,-480.0,0.00019178,2]
[387207481,1758646233504,-151.0,0.00019178,2]
[387207482,1758646233513,-151.0,0.00019178,2]
[387207483,1758646233523,-155.666924,0.00019178,2]
[387207484,1758646233532,-480.0,0.00019178,2]
[387207485,1758646233542,-151.0,0.00019178,2]
[387207486,1758646233552,-230.1591,0.00019178,2]
[387207487,1758646233561,-151.0,0.00019178,2]
[387207488,1758646233571,-151.0,0.00019178,2]
[387207489,1758646233580,-151.0,0.00019178,2]
[387207490,1758646233589,-480.0,0.00019178,2]
[387207491,1758646233598,-151.0,0.00019178,2]
[387207492,1758646233608,-151.0,0.00019178,2]
[387207493,1758646233618,-152.626994,0.00019178,2]
[387207494,1758646233627,-227.48569811,0.00019178,2]
[387207495,1758646233637,-480.0,0.00019178,2]
[387207496,1758646233646,-158.219242,0.00019178,2]
[387207497,1758646233655,-151.0,0.00019178,2]
[387207498,1758646233664,-151.0,0.00019178,2]
[387207499,1758646233674,-480.0,0.00019178,2]
[387207500,1758646233682,-151.0,0.00019178,2]
[387207501,1758646233691,-151.0,0.00019178,2]
[387207502,1758646233701,-151.0,0.00019178,2]
[387207503,1758646233710,-151.0,0.00019178,2]
[387207504,1758646233720,-500.0,0.00019178,2]
[387207505,1758646233729,-500.0,0.00019178,2]
[387207506,1758646233739,-500.0,0.00019178,2]
[387207507,1758646233749,-500.0,0.00019178,2]
[387207508,1758646233759,-500.0,0.00019178,2]
[387207509,1758646233769,-500.0,0.00019178,2]
[387207510,1758646233780,-151.0,0.00019178,2]
[387207511,1758646233789,-480.0,0.00019178,2]
[387207512,1758646233799,-480.0,0.00019178,2]
[387207513,1758646233808,-480.0,0.00019178,2]
[387207514,1758646233817,-480.0,0.00019178,2]
[387207515,1758646233826,-480.0,0.00019178,2]
[387207516,1758646233836,-152.863996,0.00019178,2]
[387207517,1758646233845,-481.95646586,0.00019178,2]
[387207518,1758646233855,-480.0,0.00019178,2]
[387207519,1758646233864,-480.0,0.00019178,2]
[387207520,1758646233873,-151.618247,0.00019178,2]
[387207521,1758646233883,-522.76,0.00019178,2]
[387207522,1758646233892,-490.94197555,0.00019178,2]
[387207523,1758646233902,-151.0,0.00019178,2]
[387207524,1758646233911,-480.0,0.00019178,2]
[387207525,1758646233920,-151.865945,0.00019178,2]
[387207526,1758646233930,-151.330335,0.00019178,2]
[387207527,1758646233943,-480.0,0.00019178,2]
[387207528,1758646233954,-480.0,0.00019178,2]
[387207529,1758646233963,-480.0,0.00019178,2]
[387207530,1758646233973,-622.56,0.00019178,2]
[387207531,1758646233982,-151.0,0.00019178,2]
[387207532,1758646233992,-151.0,0.00019178,2]
[387207533,1758646234001,-197.860276,0.00019178,2]
[387207534,1758646234011,-500.56870023,0.00019178,2]
[387207535,1758646234021,-502.87,0.00019178,2]
[387207536,1758646234031,-480.0,0.00019178,2]
[387207537,1758646234041,-480.0,0.00019178,2]
[387207538,1758646234050,-480.0,0.00019178,2]
[387207539,1758646234059,-2140.36,0.00019178,2]
[387207540,1758646234069,-480.0,0.00019178,2]
[387207541,1758646234078,-480.0,0.00019178,2]
[387207542,1758646234088,-480.0,0.00019178,2]
[387207543,1758646234097,-245.61693289,0.00019178,2]
[387207544,1758646234107,-7587.04,0.00019178,2]
[387207545,1758646234116,-539.1,0.00019178,2]
[387207546,1758646234127,-480.0,0.00019178,2]
[387207547,1758646234137,-480.0,0.00019178,2]
[387207548,1758646234147,-480.0,0.00019178,2]
[387207549,1758646234158,-193.19888542,0.00019178,2]
[387207550,1758646234168,-480.0,0.00019178,2]
[387207551,1758646234177,-480.0,0.00019178,2]
[387207552,1758646234187,-480.0,0.00019178,2]
[387207553,1758646234197,-480.0,0.00019178,2]
[387207554,1758646234207,-480.0,0.00019178,2]
[387207555,1758646234218,-480.0,0.00019178,2]
[387207556,1758646234228,-151.0,0.00019178,2]
[387207557,1758646234237,-151.0,0.00019178,2]
[387207558,1758646234248,-151.0,0.00019178,2]
[387207559,1758646234258,-151.0,0.00019178,2]
[387207560,1758646234268,-200.742377,0.00019178,2]
[387207561,1758646234278,-490.23,0.00019178,2]
[387207562,1758646234289,-151.0,0.00019178,2]
[387207563,1758646234298,-480.0,0.00019178,2]
[387207564,1758646234308,-480.0,0.00019178,2]
[387207565,1758646234318,-480.0,0.00019178,2]
[387207566,1758646234327,-480.0,0.00019178,2]
[387207567,1758646234337,-480.0,0.00019178,2]
[387207568,1758646234346,-490.40236565,0.00019178,2]
[387207569,1758646234355,-480.0,0.00019178,2]
[387207570,1758646234365,-2782.61,0.00019178,2]
[387207571,1758646234374,-151.0,0.00019178,2]
[387207572,1758646234383,-151.0,0.00019178,2]
[387207573,1758646234393,-151.0,0.00019178,2]
[387207574,1758646234403,-480.0,0.00019178,2]
[387207575,1758646234412,-151.0,0.00019178,2]
[387207576,1758646234421,-480.0,0.00019178,2]
[387207577,1758646234430,-151.0,0.00019178,2]
[387207578,1758646234440,-151.0,0.00019178,2]
[387207579,1758646234450,-238.009481,0.00019178,2]
[387207580,1758646234459,-838.6,0.00019178,2]
[387207581,1758646234468,-480.0,0.00019178,2]
[387207582,1758646234478,-480.0,0.00019178,2]
[387207583,1758646234487,-480.0,0.00019178,2]
[387207584,1758646234496,-480.0,0.00019178,2]
[387207585,1758646234506,-480.0,0.00019178,2]
[387207586,1758646234515,-480.0,0.00019178,2]
[387207587,1758646234525,-151.0,0.00019178,2]
[387207588,1758646234535,-480.0,0.00019178,2]
[387207589,1758646234545,-151.0,0.00019178,2]
[387207590,1758646234554,-151.0,0.00019178,2]
[387207591,1758646234563,-151.0,0.00019178,2]
[387207592,1758646234573,-480.0,0.00019178,2]
[387207593,1758646234582,-151.0,0.00019178,2]
[387207594,1758646234592,-151.0,0.00019178,2]
[387207595,1758646234601,-301.078848,0.00019178,2]
[387207596,1758646234610,-1020.98,0.00019178,2]
[387207597,1758646234620,-1053.47,0.00019178,2]
[387207598,1758646234630,-480.0,0.00019178,2]
[387207599,1758646234639,-480.0,0.00019178,2]
[387207600,1758646234648,-151.0,0.00019178,2]
[387207601,1758646234657,-151.0,0.00019178,2]
[387207602,1758646234666,-151.0,0.00019178,2]
[387207603,1758646234676,-151.0,0.00019178,2]
[387207604,1758646234686,-480.0,0.00019178,2]
[387207605,1758646234695,-151.0,0.00019178,2]
[387207606,1758646234706,-480.0,0.00019178,2]
[387207607,1758646234715,-151.0,0.00019178,2]
[387207608,1758646234725,-151.0,0.00019178,2]
[387207609,1758646234735,-480.0,0.00019178,2]
[387207610,1758646234744,-151.0,0.00019178,2]
[387207611,1758646234753,-480.0,0.00019178,2]
[387207612,1758646234762,-209.432195,0.00019178,2]
[387207613,1758646234771,-727.54,0.00019178,2]
[387207614,1758646234781,-480.0,0.00019178,2]
[387207615,1758646234790,-480.0,0.00019178,2]
[387207616,1758646234799,-480.0,0.00019178,2]